bitfinex-derivatives/quotes_SOLF0:USTF0_20241016
["timestamp","ask_amount","ask_price","bid_price","bid_amount"]
[1729087847790,39.97,155.7,155.59,39.97]
[1729087848684,3.2129,155.65,155.61,3.2135]
[1729087849185,3.213,155.64,155.61,3.2135]
[1729087850183,3.2124,155.67,155.64,3.2129]
[1729087850384,4.235,155.75,155.59,39.97]
[1729087850385,39.97,155.74,155.59,39.97]
[1729087850587,8.12,155.73,155.64,39.97]
[1729087850986,8.12,155.73,155.65,1.3088]
[1729087852594,8.12,155.73,155.67,39.97]
[1729087852893,3.2116,155.71,155.67,3.2122]
[1729087853088,3.2116,155.71,155.65,1.3088]
[1729087853688,3.2118,155.7,155.67,3.2122]
[1729087854890,8.12,155.73,155.65,1.3088]
[1729087855096,3.2115,155.72,155.69,3.2119]
[1729087855396,8.12,155.73,155.65,1.3088]
[1729087855590,3.2116,155.71,155.68,3.2121]
[1729087856698,3.2119,155.7,155.67,3.2123]
[1729087857193,1.4112,155.75,155.66,24.69]
[1729087857388,2.6881,155.82,155.71,24.69]
[1729087857592,9.5061,155.81,155.71,24.69]
[1729087857994,1.3861,155.81,155.71,24.69]
[1729087858189,3.2106,155.76,155.73,3.211]
[1729087859097,3.211,155.74,155.71,27.9014]
[1729087859289,3.211,155.74,155.71,24.69]
[1729087859800,34.1961,155.81,155.68,24.69]
[1729087860797,34.1961,155.81,155.71,3.2115]
[1729087860999,34.1961,155.81,155.66,24.69]
[1729087861197,24.69,155.79,155.66,24.69]
[1729087861394,3.2117,155.71,155.68,3.212]
[1729087861594,8.12,155.76,155.66,24.69]
[1729087861896,3.2111,155.73,155.68,3.212]
[1729087862098,8.12,155.77,155.66,24.69]
[1729087862300,9.5061,155.81,155.7,24.69]
[1729087862491,3.2101,155.78,155.74,3.2109]
[1729087862695,9.5061,155.81,155.7,24.69]
[1729087863000,1.3861,155.81,155.73,24.69]
[1729087863299,24.69,155.86,155.75,24.69]
[1729087863300,8.12,155.86,155.75,24.69]
[1729087863607,3.2096,155.81,155.77,3.2103]
[1729087863905,1.3418,155.85,155.74,48.19]
[1729087864090,1.3418,155.85,155.76,3.2104]
[1729087864695,3.2098,155.8,155.74,40.07]
[1729087864897,3.2098,155.8,155.77,3.2102]
[1729087865097,3.2088,155.85,155.77,40.07]
[1729087865293,8.12,155.89,155.79,40.07]
[1729087865492,4.1812,155.92,155.82,40.07]
[1729087865896,3.2076,155.9,155.85,3.2086]
[1729087866208,40.07,155.98,155.85,40.07]
[1729087866498,1.3221,155.98,155.85,40.07]
[1729087866706,1.3578,155.97,155.87,40.07]
[1729087867210,1.3578,155.97,155.85,40.07]
[1729087867399,40.07,155.95,155.84,4.5768]
[1729087867709,48.19,156.02,155.89,40.07]
[1729087867898,3.2059,155.99,155.94,3.2068]
[1729087868093,40.07,156.02,155.89,40.07]
[1729087868703,3.2063,155.97,155.91,3.2073]
[1729087869612,3.2065,155.96,155.9,3.2076]
[1729087869999,40.07,156.02,155.89,40.07]
[1729087870204,3.2068,155.95,155.89,43.2778]
[1729087870406,9.4778,156.03,155.86,40.07]
[1729087870407,8.1,155.98,155.86,40.07]
[1729087870708,50.9165,155.97,155.84,9.468]
[1729087870894,9.4756,155.97,155.89,40.07]
[1729087871404,9.4756,155.97,155.86,40.07]
[1729087871996,3.2072,155.92,155.87,3.2082]
[1729087872201,9.4578,156.03,155.89,40.07]
[1729087872398,10.8647,156.03,155.89,48.17]
[1729087872605,3.2063,155.97,155.92,3.2071]
[1729087872802,3.2063,155.97,155.89,48.17]
[1729087872803,40.07,156.02,155.89,48.17]
[1729087873510,3.2065,155.96,155.9,3.2074]
[1729087873696,2.7647,156.03,155.91,40.07]
[1729087873901,3.2056,156.0,155.95,3.2064]
[1729087874115,2.7647,156.03,155.94,40.07]
[1729087874612,2.7647,156.03,155.96,3.2064]
[1729087875109,3.2055,156.01,155.96,3.2064]
[1729087875504,2.7647,156.03,155.95,3.2066]
[1729087876105,3.2057,156.0,155.95,3.2065]
[1729087877206,3.2056,156.0,155.94,3.2068]
[1729087877509,2.7647,156.03,155.92,1.3668]
[1729087878510,2.7647,156.03,155.95,3.2066]
[1729087879107,2.7647,156.03,155.92,1.3668]
[1729087879407,100.0645937,156.05,155.96,40.07]
[1729087879605,3.2048,156.04,156.0,3.2054]
[1729087879804,3.2048,156.04,155.97,8.1]
[1729087879805,48.17,156.09,155.97,8.1]
[1729087880006,3.2044,156.06,155.97,8.1]
[1729087880214,40.07,156.07,155.95,3.2065]
[1729087880712,3.206,155.99,155.95,3.2065]
[1729087881015,3.206,155.99,155.94,51.3967]
[1729087881209,48.17,156.09,155.94,48.19]
[1729087882109,48.17,156.09,155.95,3.2065]
[1729087882311,48.17,156.09,155.94,48.19]
[1729087882312,3.2055,156.01,155.94,48.19]
[1729087882513,48.17,156.09,155.94,48.19]
[1729087882815,3.2061,155.98,155.94,48.19]
[1729087883002,3.2061,155.98,155.94,40.07]
[1729087883200,3.2061,155.98,155.94,48.19]
[1729087883405,3.2062,155.97,155.94,48.19]
[1729087884099,4.0553,156.11,155.92,1.3668]
[1729087884100,48.19,156.04,155.92,1.3668]
[1729087884301,3.2069,155.94,155.91,8.12]
[1729087884716,3.2069,155.94,155.91,11.3273]
[1729087885013,3.2065,155.96,155.91,48.19]
[1729087885811,3.2065,155.96,155.92,24.63]
[1729087886007,3.2058,156.0,155.95,24.63]
[1729087886324,6.4067,156.11,155.99,24.63]
[1729087886519,1.4363,156.1,155.99,24.63]
[1729087887024,1.4363,156.1,155.97,27.8361]
[1729087887215,3.2055,156.01,155.97,27.8361]
[1729087887415,1.4363,156.1,155.97,24.63]
[1729087887617,3.2043,156.07,155.97,24.63]
[1729087887922,24.63,156.08,155.96,9.4856]
[1729087888107,3.2049,156.04,155.95,8.1]
[1729087888307,14.5083,156.07,155.95,8.1]
[1729087890330,32.73,156.08,155.97,24.63]
[1729087890515,32.73,156.08,155.95,8.1]
[1729087890721,39.138,156.08,155.95,8.1]
[1729087891024,24.63,156.06,155.94,24.63]
[1729087891219,2.8826,156.05,155.94,24.63]
[1729087891717,2.8826,156.05,155.94,27.8368]
[1729087892116,3.206,155.98,155.95,3.2066]
[1729087892527,2.8826,156.05,155.94,24.63]
[1729087892823,3.2064,155.97,155.94,24.63]
[1729087893325,2.8826,156.05,155.94,24.63]
[1729087893524,3.2061,155.98,155.94,27.8367]
[1729087894224,2.8826,156.05,155.97,3.2061]
[1729087894416,2.8826,156.05,155.94,24.63]
[1729087894923,3.2061,155.98,155.94,27.8366]
[1729087895330,2.8826,156.05,155.94,24.63]
[1729087895531,3.2066,155.95,155.92,11.307]
[1729087896422,3.2066,155.95,155.93,3.207]
[1729087896817,3.2066,155.95,155.92,8.1]
[1729087897020,3.2066,155.95,155.92,11.3071]
[1729087897217,3.2064,155.96,155.92,8.1]
[1729087897724,3.2064,155.96,155.93,3.2069]
[1729087897919,1.4422,156.02,155.91,24.63]
[1729087898116,33.5823,156.03,155.89,32.73]
[1729087898319,27.1722,156.03,155.9,3.2076]
[1729087898724,3.2071,155.93,155.9,3.2076]
[1729087898931,3.2071,155.93,155.91,3.2074]
[1729087899131,3.2067,155.95,155.89,24.63]
[1729087899433,27.1722,156.03,155.89,24.63]
[1729087899619,2.8826,156.05,155.92,24.63]
[1729087899932,3.2061,155.98,155.93,8.1]
[1729087900131,3.2061,155.98,155.96,3.2064]
[1729087900626,8.1,156.04,155.93,8.1]
[1729087900821,8.1,156.04,155.93,11.3068]
[1729087901025,8.1,156.04,155.93,8.1]
[1729087901226,3.2074,155.91,155.9,8.1]
[1729087901424,24.63,156.0,155.87,34.1403]
[1729087901627,24.63,155.98,155.84,24.63]
[1729087901927,78.8745,156.04,155.83,8.1]
[1729087901928,3.2085,155.86,155.83,8.1]
[1729087902334,3.2085,155.86,155.83,3.209]
[1729087902631,32.73,155.93,155.81,25.9989]
[1729087902836,32.73,155.93,155.81,34.1189]
[1729087903230,1.3676,155.92,155.81,8.12]
[1729087903726,3.2096,155.81,155.76,93.89]
[1729087903925,3.2096,155.81,155.76,102.01]
[1729087904138,2.813,155.87,155.76,32.75]
[1729087904531,1.3639,155.95,155.86,24.63]
[1729087904934,1.3639,155.95,155.86,27.8384]
[1729087905135,1.3639,155.95,155.86,24.63]
[1729087905437,3.2075,155.91,155.86,3.2084]
[1729087905635,9.4839,155.95,155.84,24.63]
[1729087906734,3.2081,155.88,155.84,24.63]
[1729087907238,3.2077,155.9,155.85,3.2085]
[1729087907837,3.208,155.89,155.84,27.8387]
[1729087908143,9.4839,155.95,155.84,27.8387]
[1729087908340,9.4839,155.95,155.84,24.63]
[1729087908535,3.208,155.89,155.84,24.63]
[1729087909230,34.1139,155.95,155.81,24.63]
[1729087910436,3.2075,155.91,155.84,24.63]
[1729087910828,3.2077,155.9,155.84,24.63]
[1729087911438,3.2077,155.9,155.86,3.2083]
[1729087912144,9.4439,155.95,155.86,3.2083]
[1729087912437,3.2078,155.89,155.86,3.2083]
[1729087913036,3.2078,155.89,155.85,3.2085]
[1729087913737,3.208,155.88,155.85,3.2085]
[1729087913934,9.4439,155.95,155.85,3.2086]
[1729087914134,8.08,155.94,155.84,24.63]
[1729087914335,8.08,155.94,155.81,24.63]
[1729087914535,24.63,155.93,155.78,24.63]
[1729087914746,8.08,155.94,155.78,32.71]
[1729087914747,3.2091,155.83,155.78,32.71]
[1729087914931,3.2091,155.83,155.8,3.2096]
[1729087915342,3.21,155.79,155.7,24.63]
[1729087915536,1.4478,155.87,155.73,24.63]
[1729087915736,8.08,155.86,155.73,24.63]
[1729087916140,8.08,155.86,155.76,3.2105]
[1729087916334,8.08,155.86,155.73,24.63]
[1729087916845,3.2096,155.81,155.73,24.63]
[1729087917045,8.08,155.8,155.73,24.63]
[1729087917240,8.08,155.8,155.7,8.08]
[1729087917241,8.08,155.8,155.7,24.63]
[1729087917443,3.2104,155.77,155.7,24.63]
[1729087917653,4.1342,155.79,155.68,24.63]
[1729087917843,3.2108,155.75,155.69,3.2119]
[1729087918039,8.08,155.75,155.68,24.63]
[1729087918343,3.2113,155.73,155.66,3.2125]
[1729087918538,3.2113,155.73,155.65,24.63]
[1729087918846,3.2116,155.71,155.65,27.8428]
[1729087919051,32.71,155.75,155.63,24.63]
[1729087919252,2.7869,155.7,155.6,24.63]
[1729087919546,9.399,155.69,155.6,24.63]
[1729087919742,3.2125,155.67,155.61,3.2136]
[1729087919955,1.319,155.69,155.6,24.63]
[1729087920141,1.319,155.69,155.63,24.63]
[1729087920538,2.7869,155.7,155.63,24.63]
[1729087920851,8.08,155.72,155.66,24.63]
[1729087921553,8.08,155.72,155.63,24.63]
[1729087922248,8.08,155.72,155.66,3.2125]
[1729087922645,1.319,155.74,155.68,3.2119]
[1729087922845,1.319,155.74,155.63,24.63]
[1729087922846,9.399,155.74,155.63,24.63]
[1729087923751,3.2114,155.72,155.66,3.2124]
[1729087924047,9.399,155.74,155.63,24.63]
[1729087924453,3.2113,155.73,155.67,3.2122]
[1729087925454,8.08,155.76,155.68,24.63]
[1729087925950,8.08,155.76,155.71,3.2114]
[1729087925951,11.2906,155.76,155.71,3.2114]
[1729087927752,2.7763,155.77,155.68,24.63]
[1729087928451,2.7763,155.77,155.66,27.348]
[1729087928643,24.63,155.75,155.63,24.63]
[1729087929148,3.2115,155.71,155.67,3.2122]
[1729087929340,8.08,155.73,155.63,24.63]
[1729087929544,3.2118,155.7,155.66,3.2124]
[1729087929741,8.08,155.73,155.63,24.63]
[1729087929941,8.08,155.73,155.61,32.71]
[1729087930153,8.08,155.73,155.61,24.63]
[1729087930452,8.08,155.73,155.66,3.2125]
[1729087930644,8.08,155.73,155.61,24.63]
[1729087930645,32.71,155.73,155.61,24.63]
[1729087930840,3.212,155.69,155.61,24.63]
[1729087931547,3.2111,155.73,155.7,3.2117]
[1729087932549,3.2111,155.73,155.69,3.2119]
[1729087932949,10.911,155.74,155.66,24.63]
[1729087933153,7.7,155.74,155.66,24.63]
[1729087933749,7.7,155.74,155.71,3.2114]
[1729087934345,10.9109,155.74,155.71,3.2114]
[1729087934652,3.2109,155.74,155.71,3.2114]
[1729087935251,1.3384,155.77,155.68,24.63]
[1729087936346,10.3689,155.82,155.69,7.7]
[1729087936549,10.3689,155.82,155.73,24.63]
[1729087936948,3.2096,155.81,155.77,3.2101]
[1729087937451,10.3689,155.82,155.77,3.2101]
[1729087937654,3.2098,155.8,155.77,3.2101]
[1729087937847,10.3689,155.82,155.76,3.2105]
[1729087938251,3.2101,155.78,155.7,24.63]
[1729087938550,10.3689,155.82,155.74,3.2107]
[1729087938551,1.3083,155.81,155.74,3.2107]
[1729087939555,1.3083,155.81,155.69,7.7]
[1729087939853,3.2101,155.78,155.74,3.2107]
[1729087940257,1.3083,155.81,155.71,24.63]
[1729087940452,4.5178,155.81,155.78,3.21]
[1729087940851,7.7,155.83,155.73,24.63]
[1729087941252,7.7,155.83,155.74,1.3446]
[1729087941559,3.2093,155.82,155.74,9.0446]
[1729087941849,7.7,155.83,155.74,9.0446]
[1729087942046,7.7,155.83,155.77,3.2102]
[1729087942047,3.2098,155.8,155.77,3.2102]
[1729087942251,3.2098,155.8,155.74,9.0446]
[1729087942459,7.7,155.83,155.74,7.7]
[1729087942663,3.2102,155.78,155.75,3.2106]
[1729087942862,32.33,155.83,155.7,7.7]
[1729087943064,3.2106,155.76,155.73,3.2111]
[1729087943552,3.2106,155.76,155.68,33.6968]
[1729087943762,3.2103,155.77,155.74,3.2109]
[1729087943955,32.33,155.83,155.7,24.63]
[1729087944254,3.2097,155.81,155.78,3.2101]
[1729087944459,32.33,155.83,155.7,24.63]
[1729087944756,3.2097,155.8,155.77,3.2102]
[1729087945062,32.33,155.83,155.7,24.63]
[1729087945453,3.2102,155.78,155.75,3.2106]
[1729087945648,32.33,155.83,155.7,24.63]
[1729087945848,3.2104,155.77,155.74,3.2108]
[1729087946057,24.63,155.8,155.68,33.6968]
[1729087946249,24.63,155.8,155.68,9.0668]
[1729087946567,3.211,155.74,155.71,3.2114]
[1729087947055,2.7112,155.79,155.72,3.2113]
[1729087947056,3.2108,155.75,155.72,3.2113]
[1729087949259,3.2111,155.74,155.71,3.2115]
[1729087949454,7.7,155.78,155.67,8.6565]
[1729087949455,32.33,155.78,155.67,1.3165]
[1729087949651,3.2116,155.71,155.68,3.2121]
[1729087949855,32.33,155.78,155.65,7.34]
[1729087950261,3.2116,155.71,155.68,3.212]
[1729087951065,3.2117,155.71,155.68,3.212]
[1729087951765,3.2118,155.7,155.67,3.2122]
[1729087952164,24.63,155.76,155.65,7.34]
[1729087952360,3.212,155.69,155.66,3.2125]
[1729087952664,7.34,155.73,155.65,7.34]
[1729087952869,3.2116,155.71,155.68,3.2121]
[1729087953063,7.34,155.73,155.68,3.2121]
[1729087953262,28.7106,155.79,155.65,31.97]
[1729087953568,7.34,155.78,155.68,24.63]
[1729087953960,4.0806,155.79,155.7,24.63]
[1729087954265,7.34,155.83,155.72,24.63]
[1729087954766,7.34,155.83,155.71,2.7964]
[1729087954966,24.63,155.82,155.71,2.7964]
[1729087955167,3.2107,155.76,155.73,3.211]
[1729087955466,3.2107,155.76,155.71,2.7964]
[1729087955772,3.2102,155.78,155.75,3.2106]
[1729087955971,24.63,155.85,155.71,2.7964]
[1729087956179,7.34,155.84,155.71,2.7964]
[1729087956359,3.2096,155.81,155.77,3.2102]
[1729087956562,7.34,155.84,155.75,24.63]
[1729087956966,4.1816,155.87,155.75,24.63]
[1729087957165,93.99,155.88,155.75,24.63]
[1729087957166,7.34,155.91,155.8,24.63]
[1729087957378,3.2084,155.87,155.83,3.2089]
[1729087957672,8.7483,155.91,155.8,7.34]
[1729087957976,33.3783,155.91,155.8,7.34]
[1729087958275,24.63,155.88,155.71,2.7964]
[1729087958571,24.63,155.85,155.72,7.34]
[1729087958772,8.6602,155.84,155.72,7.34]
[1729087959075,9.9945,155.84,155.72,31.97]
[1729087959270,3.2094,155.82,155.78,3.2099]
[1729087959874,9.9945,155.84,155.72,31.97]
[1729087960073,3.2093,155.82,155.72,31.97]
[1729087960285,9.9945,155.84,155.72,31.97]
[1729087960687,3.2096,155.81,155.75,3.2106]
[1729087960890,3.2096,155.81,155.71,2.7964]
[1729087960891,9.9945,155.84,155.73,7.34]
[1729087961692,3.2098,155.8,155.76,3.2103]
[1729087962486,9.9945,155.84,155.73,7.34]
[1729087962888,3.2097,155.8,155.73,7.34]
[1729087963081,9.9945,155.84,155.73,7.34]
[1729087963481,9.9945,155.84,155.75,3.2106]
[1729087963794,9.9945,155.84,155.73,7.34]
[1729087963985,3.2094,155.82,155.78,3.2099]
[1729087964186,2.6545,155.84,155.78,3.2099]
[1729087964886,3.2092,155.83,155.78,3.2099]
[1729087965092,2.6545,155.84,155.78,3.2099]
[1729087965283,2.6545,155.84,155.73,7.34]
[1729087965988,24.63,155.83,155.73,7.34]
[1729087966202,24.63,155.8,155.67,24.63]
[1729087966386,24.63,155.8,155.68,7.34]
[1729087966993,3.2104,155.77,155.71,3.2114]
[1729087967190,24.63,155.8,155.71,3.2114]
[1729087967392,24.63,155.8,155.68,7.34]
[1729087967590,3.211,155.74,155.71,3.2115]
[1729087968595,24.63,155.8,155.68,7.34]
[1729087968807,3.2113,155.73,155.7,3.2117]
[1729087968994,24.63,155.8,155.68,7.34]
[1729087969395,3.211,155.74,155.71,3.2115]
[1729087969998,3.211,155.74,155.67,24.63]
[1729087969999,24.63,155.77,155.67,7.34]
[1729087970298,2.6927,155.76,155.66,34.7194]
[1729087970497,7.34,155.77,155.69,24.63]
[1729087970700,7.34,155.81,155.69,24.63]
[1729087970996,3.2106,155.76,155.73,3.211]
[1729087971500,3.2106,155.76,155.71,7.34]
[1729087971501,7.34,155.81,155.72,24.63]
[1729087971703,1.3766,155.83,155.75,24.63]
[1729087971907,7.34,155.86,155.75,24.63]
[1729087972110,3.2092,155.83,155.75,24.63]
[1729087972300,93.97,155.87,155.76,7.34]
[1729087972301,69.34,155.87,155.76,7.34]
[1729087972495,76.68,155.87,155.76,7.34]
[1729087973305,3.2092,155.83,155.79,3.2098]
[1729087973502,76.68,155.87,155.76,7.34]
[1729087973802,3.2085,155.86,155.83,3.2091]
[1729087974101,3.2085,155.86,155.78,24.63]
[1729087974299,3.2088,155.85,155.81,3.2093]
[1729087974495,31.97,155.89,155.78,24.63]
[1729087974804,24.63,155.87,155.76,7.34]
[1729087975007,7.34,155.89,155.76,7.34]
[1729087975199,24.63,155.88,155.76,7.34]
[1729087975400,7.34,155.89,155.76,7.34]
[1729087975602,7.34,155.89,155.76,10.0331]
[1729087976006,3.2089,155.84,155.8,3.2095]
[1729087976306,24.63,155.87,155.76,7.34]
[1729087976702,7.34,155.89,155.76,7.34]
[1729087977512,3.209,155.84,155.8,3.2095]
[1729087978101,3.2087,155.85,155.76,7.34]
[1729087978607,7.34,155.89,155.76,7.34]
[1729087978808,3.209,155.84,155.81,3.2093]
[1729087979009,7.34,155.89,155.76,7.34]
[1729087979398,24.63,155.87,155.76,7.34]
[1729087980203,3.2094,155.82,155.79,3.2098]
[1729087980401,24.63,155.87,155.76,7.34]
[1729087980603,7.34,155.89,155.76,7.34]
[1729087980810,3.209,155.84,155.76,7.34]
[1729087981012,7.34,155.89,155.76,7.34]
[1729087981202,3.2092,155.83,155.8,3.2095]
[1729087981401,24.63,155.85,155.66,6.4249]
[1729087981595,26.0429,155.82,155.7,7.02]
[1729087981795,1.3416,155.81,155.7,7.02]
[1729087982000,1.3416,155.81,155.74,3.2108]
[1729087982001,3.2103,155.77,155.74,3.2108]
[1729087982806,3.2102,155.78,155.75,3.2107]
[1729087983115,2.7622,155.81,155.7,7.02]
[1729087983116,1.3416,155.81,155.73,24.63]
[1729087983306,1.3416,155.81,155.78,3.21]
[1729087983307,3.2095,155.81,155.78,3.21]
[1729087984297,3.2097,155.8,155.78,3.21]
[1729087984499,1.4129,155.82,155.75,10.2307]
[1729087985002,3.2102,155.78,155.75,10.2307]
[1729087986111,3.2104,155.77,155.74,3.2109]
[1729087986503,1.4129,155.82,155.7,31.65]
[1729087986704,1.4129,155.82,155.76,3.2104]
[1729087987102,3.21,155.79,155.73,3.2111]
[1729087987309,1.4129,155.82,155.73,3.2111]
[1729087987503,1.4129,155.82,155.7,31.65]
[1729087988007,3.21,155.79,155.7,31.65]
[1729087988199,1.4129,155.82,155.7,31.65]
[1729087988400,7.02,155.84,155.73,24.63]
[1729087988602,7.02,155.84,155.79,3.2098]
[1729087988806,7.02,155.84,155.75,7.02]
[1729087989214,7.02,155.84,155.77,3.2102]
[1729087989416,7.02,155.84,155.75,7.02]
[1729087989613,3.2094,155.82,155.75,7.02]
[1729087989917,7.02,155.84,155.75,31.65]
[1729087990303,3.2094,155.82,155.75,31.65]
[1729087990814,1.3283,155.86,155.75,31.65]
[1729087991016,1.3283,155.86,155.78,24.63]
[1729087991220,2.7709,155.87,155.8,3.2095]
[1729087991514,3.2086,155.86,155.8,7.02]
[1729087991709,1.3726,155.91,155.8,7.02]
[1729087992016,2.7446,155.91,155.84,3.2087]
[1729087992413,2.7446,155.91,155.8,34.7910434]
[1729087992604,24.63,155.95,155.83,24.63]
[1729087992805,229.0,156.06,155.83,24.63]
[1729087992806,2.7774,155.97,155.83,24.63]
[1729087993014,3.2069,155.94,155.9,3.2075]
[1729087993409,3.2069,155.94,155.88,7.02]
[1729087993609,3.2067,155.95,155.92,3.2072]
[1729087993816,2.7774,155.97,155.88,7.02]
[1729087994220,3.2068,155.94,155.91,3.2074]
[1729087994417,2.7774,155.97,155.88,7.02]
[1729087994921,3.207,155.93,155.88,7.02]
[1729087995323,3.207,155.93,155.86,24.63]
[1729087995518,3.207,155.93,155.87,7.02]
[1729087995722,3.207,155.93,155.89,3.2077]
[1729087996125,2.7774,155.97,155.84,24.63]
[1729087996311,3.2079,155.89,155.85,3.2085]
[1729087996620,7.02,155.95,155.84,7.02]
[1729087996820,3.208,155.89,155.84,10.2287]
[1729087997121,3.208,155.89,155.84,7.02]
[1729087997315,7.02,155.95,155.84,7.02]
[1729087997516,2.7774,155.97,155.84,7.02]
[1729087998223,3.2076,155.91,155.84,7.02]
[1729087998427,2.7774,155.97,155.84,7.02]
[1729087998621,24.63,155.95,155.84,7.02]
[1729087999112,3.2082,155.88,155.84,10.2287]
[1729087999309,24.63,155.92,155.84,7.02]
[1729087999513,24.63,155.9,155.79,1.3687]
[1729087999713,3.209,155.84,155.8,3.2096]
[1729088000009,2.8023,155.89,155.79,8.3887]
[1729088000213,2.8023,155.89,155.85,3.2085]
[1729088000214,6.0103,155.89,155.85,3.2085]
[1729088000417,2.8023,155.89,155.85,3.2085]
[1729088000917,3.2082,155.88,155.85,3.2085]
[1729088001123,2.8023,155.89,155.84,3.2088]
[1729088001623,3.2082,155.87,155.84,3.2088]
[1729088001922,2.8023,155.89,155.79,8.3887]
[1729088002121,3.2088,155.85,155.81,3.2093]
[1729088002320,27.4323,155.89,155.78,24.63]
[1729088002520,3.2086,155.86,155.77,7.02]
[1729088002823,7.02,155.88,155.78,3.21]
[1729088003023,24.63,155.86,155.77,7.02]
[1729088003919,7.02,155.88,155.77,7.02]
[1729088004821,7.02,155.88,155.79,3.2097]
[1729088006018,3.2099,155.79,155.77,7.02]
[1729088006226,24.63,155.87,155.77,7.02]
[1729088006927,3.2096,155.81,155.78,3.2101]
[1729088008020,24.63,155.87,155.77,7.02]
[1729088008219,3.2097,155.8,155.77,10.2302]
[1729088008423,24.63,155.87,155.77,7.02]
[1729088009021,3.2104,155.77,155.74,3.2108]
[1729088009535,3.2106,155.76,155.73,9.911]
[1729088009916,24.63,155.81,155.73,6.7]
[1729088010122,2.7924,155.8,155.72,3.2113]
[1729088010935,3.2108,155.75,155.72,3.2113]
[1729088012035,2.7924,155.8,155.7,8.0587]
[1729088012224,3.2108,155.75,155.72,3.2113]
[1729088012724,3.2104,155.77,155.74,3.2109]
[1729088012928,2.7924,155.8,155.74,3.2109]
[1729088013132,2.7924,155.8,155.7,8.0587]
[1729088013426,2.7924,155.8,155.71,24.63]
[1729088013625,1.3567,155.83,155.73,24.63]
[1729088013825,3.2096,155.81,155.78,3.2099]
[1729088014027,1.3567,155.83,155.75,6.7]
[1729088014225,2.8719,155.85,155.76,24.63]
[1729088014422,6.7,155.89,155.78,24.63]
[1729088014726,4.2563,155.9,155.78,24.63]
[1729088014925,4.2563,155.9,155.81,24.63]
[1729088015132,4.2563,155.9,155.81,31.33]
[1729088015332,3.2084,155.87,155.84,3.2088]
[1729088015541,24.63,155.89,155.76,8.0703]
[1729088016026,24.63,155.89,155.78,3.21]
[1729088016529,3.2094,155.82,155.78,3.21]
[1729088016828,3.2094,155.82,155.76,8.0703]
[1729088017033,4.2563,155.9,155.76,8.0703]
[1729088017233,10.9563,155.9,155.78,24.63]
[1729088017533,10.9563,155.9,155.82,3.2091]
[1729088017721,3.2086,155.86,155.82,3.2091]
[1729088018821,3.2086,155.86,155.81,6.7]